[Event "Fagernes GM-A 2019"]
[Site "Fagernes"]
[Date "2019.04.18"]
[Round "4"]
[White "Vovk, Andriy"]
[Black "Efroimski, Marsel"]
[Result "1/2-1/2"]
[ECO "B70"]
[WhiteElo "2616"]
[BlackElo "2287"]
[Annotator "ChessBase"]
[PlyCount "81"]
[EventDate "2019.04.14"]
[EventType "tourn"]
[EventCountry "NOR"]
[SourceTitle "playchess.com"]
[Source "ChessBase"]
[SourceQuality "1"]
[TimeControl "40/7200:3600"]

1. e4 {[%emt 0:04:54]} c5 {[%emt 0:00:01]} 2. Nf3 {[%emt 0:00:19]} d6 {[%emt 0:00:15]} 3. d4 {[%emt 0:02:00]} cxd4 {[%emt 0:00:05]} 4. Nxd4 {[%emt 0:00:08]} Nf6 {[%emt 0:00:02]} 5. Nc3 {[%emt 0:00:13]} Nc6 {[%emt 0:00:03]} 6. g3 {[%emt 0:04:33]} g6 {[%emt 0:01:19]} 7. Bg2 {[%emt 0:00:11]} Nxd4 {[%emt 0:02:21]} 8. Qxd4 {[%emt 0:00:08]} Bg7 {[%emt 0:00:04]} 9. b3 {[%emt 0:11:25]} O-O {[%emt 0:06:36]} 10. Bb2 {[%emt 0:00:53]} Qa5 {[%emt 0:15:48]} 11. Qd2 {[%emt 0:02:52]} Be6 {[%emt 0:10:47]} 12. Na4 {[%emt 0:05:58]} Qh5 {[%emt 0:11:19]} 13. O-O {[%emt 0:13:31]} b5 {[%emt 0:13:02]} 14. Nc3 {[%emt 0:01:27]} Rac8 {[%emt 0:00:54]} 15. Nd1 {[%emt 0:02:33]} Bh3 {[%emt 0:06:41]} 16. Bxh3 {[%emt 0:02:03]} Qxh3 {[%emt 0:00:11]} 17. f3 {[%emt 0:00:12]} Qh5 {[%emt 0:04:42]} 18. Rf2 {[%emt 0:01:19]} Qc5 {[%emt 0:08:04]} 19. Rc1 {[%emt 0:02:49]} Nd7 {[%emt 0:06:43]} 20. Bxg7 {[%emt 0:00:35]} Kxg7 {[%emt 0:00:01]} 21. Ne3 {[%emt 0:00:44]} Nb6 {[%emt 0:00:55]} 22. c4 {[%emt 0:04:36]} bxc4 {[%emt 0:01:57]} 23. bxc4 {[%emt 0:00:24]} e6 {[%emt 0:02:07]} 24. Rc2 {[%emt 0:05:46]} f5 {[%emt 0:03:14]} 25. exf5 {[%emt 0:04:38]} exf5 {[%emt 0:00:07]} 26. Qc3+ {[%emt 0:03:00]} Kg8 {[%emt 0:00:33]} 27. Qd3 {[%emt 0:00:24]} Rfe8 {[%emt 0:02:29]} 28. Nd5 {[%emt 0:00:59]} Nxd5 {[%emt 0:02:20]} 29. cxd5 {[%emt 0:00:23]} Qb4 {[%emt 0:04:54]} 30. Rxc8 {[%emt 0:01:27]} Rxc8 {[%emt 0:00:09]} 31. Qe3 {[%emt 0:01:03]} Qc5 {[%emt 0:02:05]} 32. Qe6+ {[%emt 0:01:43]} Kf8 {[%emt 0:00:20]} 33. Qd7 {[%emt 0:02:40]} Re8 {[%emt 0:00:56]} 34. Kg2 {[%emt 0:01:43]} Re7 {[%emt 0:00:36]} 35. Qd8+ {[%emt 0:00:08]} Re8 {[%emt 0:00:14]} 36. Qh4 {[%emt 0:02:19]} Kg7 {[%emt 0:00:27]} 37. Qa4 {[%emt 0:01:50]} Re7 {[%emt 0:03:49]} 38. Rd2 {[%emt 0:01:52]} Qe3 {[%emt 0:00:12]} 39. Qb4 {[%emt 0:00:16]} Qe1 {[%emt 0:01:02]} 40. Qb2+ {[%emt 0:01:01]} Qe5 {[%emt 0:01:13]} 41. Qa3 {[%emt 1:01:57]} 1/2-1/2

[Event "Fagernes GM-A 2019"]
[Site "Fagernes"]
[Date "2019.04.18"]
[Round "4"]
[White "Turov, Maxim"]
[Black "Notkevich, Benjamin Arvola"]
[Result "1-0"]
[ECO "D38"]
[WhiteElo "2584"]
[BlackElo "2495"]
[Annotator "ChessBase"]
[PlyCount "177"]
[EventDate "2019.04.14"]
[EventType "tourn"]
[EventCountry "NOR"]
[SourceTitle "playchess.com"]
[Source "ChessBase"]
[SourceQuality "1"]
[TimeControl "40/7200:3600"]

1. d4 {[%emt 0:00:12]} Nf6 {[%emt 0:00:05]} 2. c4 {[%emt 0:00:15]} e6 {[%emt 0:00:05]} 3. Nf3 {[%emt 0:00:05]} d5 {[%emt 0:00:06]} 4. Nc3 {[%emt 0:00:22]} Bb4 {[%emt 0:00:10]} 5. Qa4+ {[%emt 0:01:45]} Nc6 {[%emt 0:00:07]} 6. Bg5 {[%emt 0:00:06]} h6 {[%emt 0:00:20]} 7. Bxf6 {[%emt 0:00:05]} Qxf6 {[%emt 0:00:05]} 8. e3 {[%emt 0:00:03]} O-O {[%emt 0:00:32]} 9. Rd1 {[%emt 0:00:09]} a6 {[%emt 0:13:31]} 10. Qb3 {[%emt 0:08:14]} Qe7 {[%emt 0:20:12]} 11. cxd5 {[%emt 0:09:59]} Na5 {[%emt 0:14:12]} 12. Qc2 {[%emt 0:00:14]} exd5 {[%emt 0:00:12]} 13. a3 {[%emt 0:11:24]} Bxc3+ {[%emt 0:00:05]} 14. Qxc3 {[%emt 0:00:05]} Nc6 {[%emt 0:00:06]} 15. Be2 {[%emt 0:03:29]} Bg4 {[%emt 0:03:45]} 16. h3 {[%emt 0:00:59]} Bxf3 {[%emt 0:05:50]} 17. Bxf3 {[%emt 0:00:05]} Qd6 {[%emt 0:00:18]} 18. Rc1 {[%emt 0:07:53]} Rfd8 {[%emt 0:00:09]} 19. O-O {[%emt 0:07:03]} Rd7 {[%emt 0:00:14]} 20. Bg4 {[%emt 0:07:36]} Re7 {[%emt 0:02:32]} 21. Qc5 {[%emt 0:02:00]} Rd8 {[%emt 0:03:27]} 22. b4 {[%emt 0:02:25]} g6 {[%emt 0:15:54]} 23. Bf3 {[%emt 0:06:03]} Rdd7 {[%emt 0:01:47]} 24. Qxd6 {[%emt 0:00:44]} Rxd6 {[%emt 0:00:06]} 25. Rc5 {[%emt 0:00:15]} Red7 {[%emt 0:00:09]} 26. Rfc1 {[%emt 0:00:15]} Kf8 {[%emt 0:01:00]} 27. Bd1 {[%emt 0:05:50]} Ke7 {[%emt 0:13:31]} 28. Ba4 {[%emt 0:00:26]} Kd8 {[%emt 0:00:05]} 29. Bxc6 {[%emt 0:00:15]} bxc6 {[%emt 0:00:04]} 30. g4 {[%emt 0:08:53]} Kc8 {[%emt 0:04:23]} 31. Rxc6 {[%emt 0:00:10]} Kb7 {[%emt 0:00:20]} 32. Rxd6 {[%emt 0:00:07]} Rxd6 {[%emt 0:00:05]} 33. Kf1 {[%emt 0:01:07]} c6 {[%emt 0:00:57]} 34. Ke2 {[%emt 0:00:12]} Kb6 {[%emt 0:00:31]} 35. a4 {[%emt 0:04:32]} g5 {[%emt 0:03:03]} 36. Rf1 {[%emt 0:00:41]} h5 {[%emt 0:05:24]} 37. Kf3 {[%emt 0:06:28]} Rf6+ {[%emt 0:03:56]} 38. Kg3 {[%emt 0:00:52]} h4+ {[%emt 0:01:30]} 39. Kg2 {[%emt 0:00:03]} Re6 {[%emt 0:00:19]} 40. Rb1 {[%emt 0:05:42]} f6 {[%emt 0:00:34]} 41. Kf3 {[%emt 1:00:16]} Re8 {[%emt 0:07:08]} 42. Ke2 {[%emt 0:00:00]} Kc7 {[%emt 0:00:39]} 43. Kd3 {[%emt 0:00:00]} Kd6 {[%emt 0:01:43]} 44. Rb2 {[%emt 0:00:00]} Re7 {[%emt 0:08:39]} 45. f3 {[%emt 0:00:00]} Re8 {[%emt 0:24:23]} 46. e4 {[%emt 0:00:00]} Rb8 {[%emt 0:02:26]} 47. Ke3 {[%emt 0:00:00]} Rb7 {[%emt 0:03:34]} 48. Kd3 {[%emt 0:00:00]} Rb8 {[%emt 0:00:21]} 49. Kc3 {[%emt 0:00:00]} Re8 {[%emt 0:00:28]} 50. Re2 {[%emt 0:00:00]} Re7 {[%emt 0:00:13]} 51. Re1 {[%emt 0:00:00]} Re8 {[%emt 0:00:18]} 52. Kd3 {[%emt 0:00:00]} Re7 {[%emt 0:01:59]} 53. Re2 {[%emt 0:00:00]} Rf7 {[%emt 0:00:27]} 54. exd5 {[%emt 0:00:00]} cxd5 {[%emt 0:00:16]} 55. b5 {[%emt 0:00:00]} axb5 {[%emt 0:00:13]} 56. axb5 {[%emt 0:00:00]} Ra7 {[%emt 0:01:24]} 57. Rc2 {[%emt 0:00:00]} Ra5 {[%emt 0:01:52]} 58. Rc6+ {[%emt 0:00:00]} Ke7 {[%emt 0:00:01]} 59. Rc5 {[%emt 0:00:00]} Kd6 {[%emt 0:00:09]} 60. b6 {[%emt 0:00:00]} Ra8 {[%emt 0:00:01]} 61. Kc3 {[%emt 0:00:35]} Rb8 {[%emt 0:00:08]} 62. Rb5 {[%emt 0:00:07]} Kc6 {[%emt 0:00:02]} 63. Rb3 {[%emt 0:00:50]} Re8 {[%emt 0:01:11]} 64. Rb1 {[%emt 0:00:47]} Re7 {[%emt 0:00:29]} 65. Rb4 {[%emt 0:00:54]} Re3+ {[%emt 0:00:20]} 66. Kd2 {[%emt 0:03:26]} Re7 {[%emt 0:00:01]} 67. Kd3 {[%emt 0:00:05]} Kb7 {[%emt 0:00:25]} 68. Rb5 {[%emt 0:00:09]} Kc6 {[%emt 0:00:02]} 69. Rc5+ {[%emt 0:00:15]} Kd6 {[%emt 0:00:05]} 70. Rc1 {[%emt 0:01:45]} Rb7 {[%emt 0:00:09]} 71. Rb1 {[%emt 0:00:06]} Kc6 {[%emt 0:00:03]} 72. Kc3 {[%emt 0:00:26]} Re7 {[%emt 0:00:02]} 73. Rb3 {[%emt 0:00:52]} Rb7 {[%emt 0:00:15]} 74. Rb4 {[%emt 0:00:15]} Re7 {[%emt 0:00:05]} 75. Kb3 {[%emt 0:00:00]} Kb7 {[%emt 0:00:11]} 76. Ka4 {[%emt 0:00:00]} Re1 {[%emt 0:00:12]} 77. Rb3 {[%emt 0:00:00]} Ka6 {[%emt 0:00:04]} 78. b7 {[%emt 0:00:00]} Ra1+ {[%emt 0:00:01]} 79. Kb4 {[%emt 0:00:00]} Kxb7 {[%emt 0:00:02]} 80. Kc5+ {[%emt 0:00:00]} Kc7 {[%emt 0:00:02]} 81. Kxd5 {[%emt 0:00:00]} Rh1 {[%emt 0:00:03]} 82. f4 {[%emt 0:00:00]} gxf4 {[%emt 0:00:02]} 83. Ke4 {[%emt 0:00:00]} Kd6 {[%emt 0:00:00]} 84. Kxf4 {[%emt 0:02:09]} Kd5 85. Rf3 {[%emt 0:00:00]} Kxd4 {[%emt 0:00:02]} 86. Kf5 {[%emt 0:00:00]} Rh2 {[%emt 0:00:01]} 87. Kxf6 {[%emt 0:00:00]} Ke4 {[%emt 0:00:01]} 88. Ra3 {[%emt 0:00:00]} Rf2+ {[%emt 0:00:01]} 89. Kg5 {[%emt 0:00:00]} 1-0

[Event "Fagernes GM-A 2019"]
[Site "Fagernes"]
[Date "2019.04.18"]
[Round "4"]
[White "Vorobiov, Evgeny E."]
[Black "Galinsky, Timofey"]
[Result "1/2-1/2"]
[ECO "C00"]
[WhiteElo "2565"]
[BlackElo "2378"]
[Annotator "ChessBase"]
[PlyCount "136"]
[EventDate "2019.04.14"]
[EventType "tourn"]
[EventCountry "NOR"]
[SourceTitle "playchess.com"]
[Source "ChessBase"]
[SourceQuality "1"]
[TimeControl "40/7200:3600"]

1. e4 {[%emt 0:00:03]} e6 {[%emt 0:02:38]} 2. d3 {[%emt 0:00:06]} d5 {[%emt 0:00:30]} 3. Nd2 {[%emt 0:00:06]} Nf6 {[%emt 0:00:37]} 4. e5 {[%emt 0:00:06]} Nfd7 {[%emt 0:00:50]} 5. f4 {[%emt 0:00:07]} c5 {[%emt 0:02:33]} 6. Ndf3 {[%emt 0:00:31]} Nc6 {[%emt 0:01:29]} 7. g3 {[%emt 0:00:06]} Be7 {[%emt 0:03:59]} 8. Bg2 {[%emt 0:00:39]} Qc7 {[%emt 0:01:26]} 9. Nh3 {[%emt 0:03:20]} h6 {[%emt 0:02:05]} 10. O-O {[%emt 0:01:54]} b6 {[%emt 0:01:45]} 11. Qe2 {[%emt 0:00:47]} g6 {[%emt 0:01:49]} 12. Bd2 {[%emt 0:00:26]} Bb7 {[%emt 0:00:55]} 13. c3 {[%emt 0:01:41]} a5 {[%emt 0:06:03]} 14. Nf2 {[%emt 0:06:29]} O-O-O {[%emt 0:02:27]} 15. Rfc1 {[%emt 0:03:59]} Ba6 {[%emt 0:08:23]} 16. b3 {[%emt 0:15:11]} g5 {[%emt 0:04:54]} 17. a3 {[%emt 0:03:39]} h5 {[%emt 0:02:38]} 18. b4 {[%emt 0:13:30]} gxf4 {[%emt 0:01:03]} 19. Bxf4 {[%emt 0:01:44]} h4 {[%emt 0:03:44]} 20. Rab1 {[%emt 0:03:18]} hxg3 {[%emt 0:00:27]} 21. hxg3 {[%emt 0:00:35]} Bb7 {[%emt 0:00:28]} 22. d4 {[%emt 0:05:00]} c4 {[%emt 0:00:47]} 23. b5 {[%emt 0:06:01]} Ncb8 {[%emt 0:00:26]} 24. a4 {[%emt 0:00:02]} Rdg8 {[%emt 0:00:14]} 25. Nh3 {[%emt 0:00:58]} Nf8 {[%emt 0:00:10]} 26. Kf2 {[%emt 0:00:23]} Qd8 {[%emt 0:01:43]} 27. Rh1 {[%emt 0:00:45]} Nbd7 {[%emt 0:00:43]} 28. Qe3 {[%emt 0:02:06]} Ng6 {[%emt 0:00:57]} 29. Nhg5 {[%emt 0:01:56]} Nxf4 {[%emt 0:02:40]} 30. gxf4 {[%emt 0:00:28]} Qe8 {[%emt 0:03:56]} 31. Rxh8 {[%emt 0:04:14]} Rxh8 {[%emt 0:00:04]} 32. Bh3 {[%emt 0:00:28]} Kb8 {[%emt 0:00:58]} 33. Rg1 {[%emt 0:00:44]} Bc8 {[%emt 0:00:28]} 34. Bg4 {[%emt 0:15:13]} Nf8 {[%emt 0:00:39]} 35. Qc1 {[%emt 0:01:22]} Nh7 {[%emt 0:02:09]} 36. Rh1 {[%emt 0:07:32]} Nxg5 {[%emt 0:01:12]} 37. Nxg5 {[%emt 0:06:17]} f6 {[%emt 0:08:09]} 38. exf6 {[%emt 0:02:10]} Bxf6 {[%emt 0:00:19]} 39. Rxh8 {[%emt 0:00:48]} Qxh8 {[%emt 0:00:07]} 40. Kg3 {[%emt 0:00:49]} Qh6 {[%emt 0:07:18]} 41. Qe3 {[%emt 1:04:10]} Kc7 {[%emt 1:02:10]} 42. Bxe6 {[%emt 0:00:00]} Bxg5 {[%emt 0:00:00]} 43. Qe5+ {[%emt 0:00:00]} Kd8 {[%emt 0:00:00]} 44. Qxd5+ {[%emt 0:00:00]} Ke7 {[%emt 0:00:00]} 45. Bxc8 {[%emt 0:00:00]} Bxf4+ {[%emt 0:00:00]} 46. Kg4 {[%emt 0:00:00]} Bd6 {[%emt 0:00:00]} 47. Qe4+ {[%emt 0:00:00]} Kd8 {[%emt 0:00:00]} 48. Bf5 {[%emt 0:00:00]} Qg7+ {[%emt 0:00:00]} 49. Kh5 {[%emt 0:00:00]} Qh8+ {[%emt 0:00:00]} 50. Kg4 {[%emt 0:00:00]} Qg7+ {[%emt 0:00:00]} 51. Kf3 {[%emt 0:00:00]} Qg3+ {[%emt 0:00:00]} 52. Ke2 {[%emt 0:00:00]} Qh2+ {[%emt 0:00:00]} 53. Kf1 {[%emt 0:00:00]} Qf4+ {[%emt 0:00:00]} 54. Qxf4 {[%emt 0:00:00]} Bxf4 {[%emt 0:00:00]} 55. Ke2 {[%emt 0:00:00]} Ke7 {[%emt 0:00:00]} 56. Be4 {[%emt 0:00:00]} Kd6 {[%emt 0:00:00]} 57. Bh7 {[%emt 0:00:00]} Bg3 {[%emt 0:00:00]} 58. Bg8 {[%emt 0:00:00]} Bf4 {[%emt 0:00:00]} 59. Bxc4 {[%emt 0:00:00]} Bg3 {[%emt 0:00:00]} 60. Kd3 {[%emt 0:00:00]} Bf2 {[%emt 0:00:00]} 61. Bf7 {[%emt 0:00:00]} Be1 {[%emt 0:00:00]} 62. c4 {[%emt 0:00:00]} Bf2 {[%emt 0:00:00]} 63. Ke4 {[%emt 0:00:00]} Bg1 {[%emt 0:00:00]} 64. Bh5 {[%emt 0:00:00]} Bf2 {[%emt 0:00:00]} 65. Be2 {[%emt 0:00:00]} Bg1 {[%emt 0:00:00]} 66. c5+ {[%emt 0:00:00]} bxc5 {[%emt 0:00:00]} 67. d5 {[%emt 0:00:00]} c4 {[%emt 0:00:00]} 68. Bxc4 {[%emt 0:00:00]} Bf2 {[%emt 0:00:00]} 1/2-1/2

[Event "Fagernes GM-A 2019"]
[Site "Fagernes"]
[Date "2019.04.18"]
[Round "4"]
[White "Urkedal, Frode Olav Olsen"]
[Black "Alekseev, Evgeny"]
[Result "1/2-1/2"]
[ECO "D38"]
[WhiteElo "2513"]
[BlackElo "2649"]
[Annotator "ChessBase"]
[PlyCount "46"]
[EventDate "2019.04.14"]
[EventType "tourn"]
[EventCountry "NOR"]
[SourceTitle "playchess.com"]
[Source "ChessBase"]
[SourceQuality "1"]
[TimeControl "40/7200:3600"]

1. d4 {[%emt 0:01:34]} d5 {[%emt 0:01:11]} 2. c4 {[%emt 0:00:05]} e6 {[%emt 0:00:19]} 3. Nc3 {[%emt 0:00:04]} Bb4 {[%emt 0:00:20]} 4. Nf3 {[%emt 0:01:18]} Nf6 {[%emt 0:01:55]} 5. cxd5 {[%emt 0:00:29]} exd5 {[%emt 0:03:07]} 6. Bg5 {[%emt 0:00:06]} Nbd7 {[%emt 0:18:24]} 7. e3 {[%emt 0:00:42]} h6 {[%emt 0:04:35]} 8. Bh4 {[%emt 0:00:58]} g5 {[%emt 0:02:44]} 9. Bg3 {[%emt 0:00:05]} Ne4 {[%emt 0:00:19]} 10. Nd2 {[%emt 0:00:04]} Nxg3 {[%emt 0:01:09]} 11. hxg3 {[%emt 0:00:05]} Nb6 {[%emt 0:03:03]} 12. Qc2 {[%emt 0:04:53]} Be6 {[%emt 0:05:08]} 13. Bd3 {[%emt 0:01:52]} c6 {[%emt 0:04:19]} 14. a3 {[%emt 0:05:05]} Bf8 {[%emt 0:04:33]} 15. O-O-O {[%emt 0:06:44]} Qe7 {[%emt 0:10:41]} 16. Bf5 {[%emt 0:10:19]} O-O-O {[%emt 0:02:55]} 17. g4 {[%emt 0:00:32]} Kb8 {[%emt 0:04:41]} 18. Kb1 {[%emt 0:04:50]} Bg7 {[%emt 0:10:46]} 19. Ne2 {[%emt 0:01:15]} Rc8 {[%emt 0:01:44]} 20. Rc1 {[%emt 0:05:55]} Nd7 {[%emt 0:05:10]} 21. Nb3 {[%emt 0:08:12]} b6 {[%emt 0:03:15]} 22. Ng3 {[%emt 0:00:46]} Nf6 {[%emt 0:02:05]} 23. Qe2 {[%emt 0:08:58]} Rc7 {[%emt 0:01:57]} 1/2-1/2

[Event "Fagernes GM-A 2019"]
[Site "Fagernes"]
[Date "2019.04.18"]
[Round "4"]
[White "Blomqvist, Erik"]
[Black "Santarius, Erik"]
[Result "1-0"]
[ECO "B13"]
[WhiteElo "2496"]
[BlackElo "2411"]
[Annotator "ChessBase"]
[PlyCount "93"]
[EventDate "2019.04.14"]
[EventType "tourn"]
[EventCountry "NOR"]
[SourceTitle "playchess.com"]
[Source "ChessBase"]
[SourceQuality "1"]
[TimeControl "40/7200:3600"]

1. e4 {[%emt 0:00:49]} c6 {[%emt 0:00:08]} 2. d4 {[%emt 0:00:07]} d5 {[%emt 0:00:09]} 3. exd5 {[%emt 0:00:09]} cxd5 {[%emt 0:00:13]} 4. Bd3 {[%emt 0:00:12]} Nc6 {[%emt 0:00:37]} 5. c3 {[%emt 0:00:11]} Nf6 {[%emt 0:00:39]} 6. h3 {[%emt 0:01:29]} g6 {[%emt 0:00:52]} 7. Bf4 {[%emt 0:01:09]} Bf5 {[%emt 0:02:14]} 8. Be2 {[%emt 0:00:20]} Bg7 {[%emt 0:03:34]} 9. Nf3 {[%emt 0:00:20]} O-O {[%emt 0:00:36]} 10. O-O {[%emt 0:00:16]} a6 {[%emt 0:08:46]} 11. a4 {[%emt 0:04:45]} Qb6 {[%emt 0:02:34]} 12. Ra2 {[%emt 0:02:12]} Rfc8 {[%emt 0:06:51]} 13. Nbd2 {[%emt 0:01:26]} a5 {[%emt 0:06:03]} 14. Re1 {[%emt 0:07:09]} h6 {[%emt 0:08:05]} 15. Bb5 {[%emt 0:14:50]} g5 {[%emt 0:05:41]} 16. Bh2 {[%emt 0:01:15]} e6 {[%emt 0:01:29]} 17. Ne5 {[%emt 0:10:57]} Nxe5 {[%emt 0:02:54]} 18. Bxe5 {[%emt 0:01:11]} Ne4 {[%emt 0:03:01]} 19. Bxg7 {[%emt 0:02:49]} Kxg7 {[%emt 0:00:11]} 20. Nxe4 {[%emt 0:01:14]} Bxe4 {[%emt 0:01:06]} 21. Re3 {[%emt 0:02:44]} Bg6 {[%emt 0:02:35]} 22. Qe2 {[%emt 0:02:49]} Qd6 {[%emt 0:02:49]} 23. Ra1 {[%emt 0:01:10]} Rg8 {[%emt 0:02:15]} 24. Re1 {[%emt 0:00:51]} Kh8 {[%emt 0:00:47]} 25. Re5 {[%emt 0:16:52]} Rg7 {[%emt 0:01:35]} 26. f3 {[%emt 0:11:09]} Rag8 {[%emt 0:01:28]} 27. Qf2 {[%emt 0:06:52]} Qc7 {[%emt 0:06:59]} 28. g4 {[%emt 0:03:16]} Bh7 {[%emt 0:01:02]} 29. Kg2 {[%emt 0:01:23]} Rg6 {[%emt 0:03:30]} 30. Qe3 {[%emt 0:01:42]} Rf6 {[%emt 0:00:45]} 31. Rh1 {[%emt 0:00:32]} h5 {[%emt 0:21:09]} 32. Rxg5 {[%emt 0:04:28]} Rxg5 {[%emt 0:04:44]} 33. Qxg5 Rxf3 {[%emt 0:00:07]} 34. Kxf3 {[%emt 0:00:24]} Be4+ {[%emt 0:00:05]} 35. Kf2 {[%emt 0:01:03]} Bxh1 {[%emt 0:00:06]} 36. Qxh5+ {[%emt 0:00:28]} Kg8 {[%emt 0:00:05]} 37. Qg5+ {[%emt 0:11:27]} Kf8 {[%emt 0:00:10]} 38. Qe5 {[%emt 0:00:00]} Qb6 {[%emt 0:01:52]} 39. g5 {[%emt 0:00:00]} Kg8 {[%emt 0:00:09]} 40. h4 {[%emt 0:00:00]} Be4 {[%emt 0:00:48]} 41. h5 {[%emt 0:53:48]} Qd8 {[%emt 1:00:04]} 42. h6 {[%emt 0:01:52]} Qf8 {[%emt 0:00:05]} 43. Ke3 {[%emt 0:00:54]} Kh7 {[%emt 0:01:30]} 44. Qf6 {[%emt 0:01:08]} Qg8 {[%emt 0:01:23]} 45. Bd3 {[%emt 0:01:20]} Bxd3 {[%emt 0:00:05]} 46. Kxd3 {[%emt 0:00:04]} Qf8 {[%emt 0:00:06]} 47. g6+ {[%emt 0:00:35]} 1-0

[Event "Fagernes GM-A 2019"]
[Site "Fagernes"]
[Date "2019.04.18"]
[Round "4"]
[White "Mikalsen, Erlend"]
[Black "Romanov, Evgeny"]
[Result "1/2-1/2"]
[ECO "C18"]
[WhiteElo "2397"]
[BlackElo "2576"]
[Annotator "ChessBase"]
[PlyCount "85"]
[EventDate "2019.04.14"]
[EventType "tourn"]
[EventCountry "NOR"]
[SourceTitle "playchess.com"]
[Source "ChessBase"]
[SourceQuality "1"]
[TimeControl "40/7200:3600"]

1. e4 {[%emt 0:00:02]} e6 {[%emt 0:06:00]} 2. d4 {[%emt 0:00:05]} d5 {[%emt 0:00:07]} 3. Nc3 {[%emt 0:00:04]} Bb4 {[%emt 0:00:07]} 4. e5 {[%emt 0:00:04]} c5 {[%emt 0:00:38]} 5. a3 {[%emt 0:00:06]} Bxc3+ {[%emt 0:00:07]} 6. bxc3 {[%emt 0:00:04]} Qa5 {[%emt 0:00:05]} 7. Bd2 {[%emt 0:00:04]} Qa4 {[%emt 0:00:05]} 8. Qg4 {[%emt 0:00:04]} Kf8 {[%emt 0:00:10]} 9. h4 {[%emt 0:00:08]} Nd7 {[%emt 0:00:21]} 10. h5 {[%emt 0:01:54]} h6 {[%emt 0:06:15]} 11. Qd1 {[%emt 0:03:31]} b6 {[%emt 0:02:40]} 12. Nf3 {[%emt 0:00:08]} Ba6 {[%emt 0:01:12]} 13. Bxa6 {[%emt 0:01:55]} Qxa6 {[%emt 0:00:17]} 14. a4 {[%emt 0:00:55]} Ne7 {[%emt 0:01:28]} 15. a5 {[%emt 0:01:01]} bxa5 {[%emt 0:02:00]} 16. Qe2 {[%emt 0:00:23]} Qxe2+ {[%emt 0:01:38]} 17. Kxe2 {[%emt 0:00:04]} Nc6 {[%emt 0:01:14]} 18. g4 {[%emt 0:03:33]} Rb8 {[%emt 0:09:15]} 19. Bc1 {[%emt 0:07:18]} cxd4 {[%emt 0:05:24]} 20. cxd4 {[%emt 0:01:44]} Nb6 {[%emt 0:15:01]} 21. Ba3+ {[%emt 0:03:32]} Ke8 {[%emt 0:00:32]} 22. Bd6 {[%emt 0:00:58]} Rb7 {[%emt 0:09:36]} 23. Rhb1 {[%emt 0:00:35]} Kd7 {[%emt 0:08:03]} 24. c3 {[%emt 0:00:29]} Kc8 {[%emt 0:02:10]} 25. Ne1 {[%emt 0:09:15]} Nc4 {[%emt 0:01:03]} 26. Rxb7 {[%emt 0:05:41]} Kxb7 {[%emt 0:00:09]} 27. Nd3 {[%emt 0:00:18]} Kc8 {[%emt 0:09:55]} 28. Bc5 {[%emt 0:02:32]} a4 {[%emt 0:09:21]} 29. Rxa4 {[%emt 0:01:39]} a5 {[%emt 0:00:38]} 30. Ra1 {[%emt 0:05:48]} Kc7 {[%emt 0:01:03]} 31. f4 {[%emt 0:02:09]} f6 {[%emt 0:03:20]} 32. f5 {[%emt 0:11:53]} fxe5 {[%emt 0:02:18]} 33. dxe5 {[%emt 0:01:47]} N6xe5 {[%emt 0:05:11]} 34. Nxe5 {[%emt 0:01:18]} Nxe5 {[%emt 0:00:07]} 35. fxe6 {[%emt 0:01:35]} Re8 {[%emt 0:01:18]} 36. e7 {[%emt 0:00:33]} Kc6 {[%emt 0:03:48]} 37. Ba3 {[%emt 0:01:26]} Nc4 {[%emt 0:01:56]} 38. Kd3 {[%emt 0:00:32]} Nxa3 {[%emt 0:01:44]} 39. Rxa3 {[%emt 0:00:03]} Kb5 {[%emt 0:00:25]} 40. Rb3+ {[%emt 0:00:30]} Kc6 {[%emt 0:00:34]} 41. Ra3 {[%emt 1:00:21]} Kb5 {[%emt 0:15:05]} 42. Rb3+ {[%emt 0:00:00]} Kc6 {[%emt 0:08:21]} 43. Ra3 {[%emt 0:00:00]} 1/2-1/2

[Event "Fagernes GM-A 2019"]
[Site "Fagernes"]
[Date "2019.04.18"]
[Round "4"]
[White "Mihajlov, Sebastian"]
[Black "Lindbol, Aleksander"]
[Result "1-0"]
[ECO "B33"]
[WhiteElo "2361"]
[BlackElo "2139"]
[Annotator "NA"]
[PlyCount "65"]
[EventDate "2019.04.14"]
[EventType "tourn"]
[EventCountry "NOR"]
[SourceTitle "playchess.com"]
[Source "ChessBase"]
[SourceQuality "1"]
[TimeControl "40/7200:3600"]

1. e4 {[%emt 0:06:53]} c5 {[%emt 0:00:59]} 2. Nf3 {[%emt 0:00:05]} Nc6 {[%emt 0:00:12]} 3. d4 {[%emt 0:00:06]} cxd4 {[%emt 0:00:05]} 4. Nxd4 {[%emt 0:00:03]} Nf6 {[%emt 0:00:07]} 5. Nc3 {[%emt 0:00:03]} e5 {[%emt 0:00:06]} 6. Ndb5 {[%emt 0:00:08]} d6 {[%emt 0:00:07]} 7. Bg5 {[%emt 0:00:10]} a6 {[%emt 0:00:08]} 8. Na3 {[%emt 0:00:03]} b5 {[%emt 0:00:06]} 9. Nd5 {[%emt 0:00:03]} Be7 {[%emt 0:00:06]} 10. Bxf6 {[%emt 0:00:08]} Bxf6 {[%emt 0:00:07]} 11. c4 {[%emt 0:00:34]} b4 {[%emt 0:01:05]} 12. Nc2 {[%emt 0:00:05]} O-O {[%emt 0:08:36]} 13. g3 {[%emt 0:28:09]} Bg5 {[%emt 0:17:29]} 14. Bg2 {[%emt 0:03:51]} Rb8 {[%emt 0:12:57]} 15. O-O {[%emt 0:06:17]} b3 {[%emt 0:11:49]} 16. axb3 {[%emt 0:01:21]} Rxb3 {[%emt 0:00:38]} 17. Rb1 {[%emt 0:00:36]} Bh6 {[%emt 0:08:49]} 18. Nce3 {[%emt 0:05:41]} Nd4 {[%emt 0:17:31]} 19. Nc2 {[%emt 0:08:03]} Nc6 {[%emt 0:03:23]} 20. Na1 {[%emt 0:11:29]} Rb8 {[%emt 0:00:51]} 21. b4 {[%emt 0:00:04]} g6 {[%emt 0:19:20]} 22. Nc2 {[%emt 0:00:57]} Bg7 {[%emt 0:00:22]} 23. Qd3 {[%emt 0:03:27]} Be6 {[%emt 0:01:27]} 24. Nce3 {[%emt 0:19:17]} Kh8 {[%emt 0:02:09]} 25. Kh1 {[%emt 0:02:16]} f5 {[%emt 0:03:14]} 26. f4 {[%emt 0:00:04]} fxe4 {[%emt 0:00:10]} 27. Bxe4 {[%emt 0:00:09]} Bg8 {[%emt 0:00:41]} 28. f5 {[%emt 0:02:45]} gxf5 {[%emt 0:00:04]} 29. Nxf5 {[%emt 0:02:23]} Bxd5 {[%emt 0:00:10]} 30. cxd5 {[%emt 0:00:04]} Nxb4 {[%emt 0:02:19]} 31. Qe3 {[%emt 0:07:28]} a5 {[%emt 0:01:11]} 32. Qa7 {[%emt 0:00:28]} Rg8 {[%emt 0:01:14]} 33. Nh6 {[%emt 0:00:05]} 1-0